[Event "Live Chess"]
[Site "Chess.com"]
[Date "2024.06.02"]
[Round "-"]
[White "JohanKjeldahl"]
[Black "seasidecastle27"]
[Result "0-1"]
[WhiteElo "1790"]
[BlackElo "1943"]
[TimeControl "300"]
[EndTime "4:16:19 PDT"]
[Termination "seasidecastle27 won by resignation"]

1. c4 {[%clk 0:04:57.3]} 1... e6 {[%clk 0:04:58.3]} 2. Nc3 {[%clk 0:04:54.5]}
2... d5 {[%clk 0:04:57.3]} 3. d4 {[%clk 0:04:52.8]} 3... Nf6 {[%clk 0:04:56]} 4.
Nf3 {[%clk 0:04:51.7]} 4... c5 {[%clk 0:04:54.6]} 5. cxd5 {[%clk 0:04:49]} 5...
Nxd5 {[%clk 0:04:48.5]} 6. e4 {[%clk 0:04:46.9]} 6... Nxc3 {[%clk 0:04:46.8]} 7.
bxc3 {[%clk 0:04:46.1]} 7... cxd4 {[%clk 0:04:46]} 8. cxd4 {[%clk 0:04:44.9]}
8... Bb4+ {[%clk 0:04:44.3]} 9. Bd2 {[%clk 0:04:44.1]} 9... Qa5 {[%clk
0:04:40.7]} 10. Bd3 {[%clk 0:04:38.6]} 10... Nc6 {[%clk 0:04:33.2]} 11. O-O
{[%clk 0:04:36.1]} 11... Bxd2 {[%clk 0:04:31.3]} 12. Qxd2 {[%clk 0:04:34.3]}
12... Qxd2 {[%clk 0:04:29.8]} 13. Nxd2 {[%clk 0:04:33.4]} 13... Nxd4 {[%clk
0:04:29]} 14. Nc4 {[%clk 0:04:29.1]} 14... O-O {[%clk 0:04:26.5]} 15. Rab1
{[%clk 0:04:26.7]} 15... b6 {[%clk 0:04:19.9]} 16. e5 {[%clk 0:04:23.8]} 16...
Bb7 {[%clk 0:04:15.2]} 17. Nd6 {[%clk 0:04:22.6]} 17... Bd5 {[%clk 0:04:11.5]}
18. a4 {[%clk 0:04:21.6]} 18... Rfd8 {[%clk 0:04:03.1]} 19. f4 {[%clk 0:04:19]}
19... g6 {[%clk 0:03:49.9]} 20. Kf2 {[%clk 0:04:12]} 20... Nc6 {[%clk 0:03:43]}
21. Bb5 {[%clk 0:04:02.4]} 21... Ne7 {[%clk 0:03:32.6]} 22. Rfc1 {[%clk
0:03:59]} 22... Nc8 {[%clk 0:03:27.4]} 23. Nxc8 {[%clk 0:03:47.3]} 23... Raxc8
{[%clk 0:03:25.9]} 24. g4 {[%clk 0:03:46.6]} 24... Bb7 {[%clk 0:03:11.5]} 25.
Ke3 {[%clk 0:03:42.9]} 25... Kf8 {[%clk 0:03:05.3]} 26. h4 {[%clk 0:03:38.5]}
26... Ke7 {[%clk 0:03:04]} 27. Rc4 {[%clk 0:03:26.2]} 27... Rxc4 {[%clk
0:03:00]} 28. Bxc4 {[%clk 0:03:25]} 28... Rc8 {[%clk 0:02:57.7]} 29. Bb5 {[%clk
0:03:18.1]} 29... Rc3+ {[%clk 0:02:54.5]} 30. Bd3 {[%clk 0:03:16.3]} 30... Ba6
{[%clk 0:02:51.2]} 31. Rd1 {[%clk 0:03:15.2]} 31... Bxd3 {[%clk 0:02:47.6]} 32.
Rxd3 {[%clk 0:03:14.3]} 32... Rxd3+ {[%clk 0:02:46.1]} 33. Kxd3 {[%clk
0:03:13.9]} 33... Kd7 {[%clk 0:02:45.1]} 34. Kc4 {[%clk 0:03:12.2]} 34... Kc6
{[%clk 0:02:44.1]} 35. h5 {[%clk 0:03:08.1]} 35... a6 {[%clk 0:02:41.6]} 36.
hxg6 {[%clk 0:03:00.3]} 36... hxg6 {[%clk 0:02:40.1]} 37. Kb4 {[%clk 0:02:57.8]}
37... Kd5 {[%clk 0:02:35.8]} 0-1

[Event "Live Chess"]
[Site "Chess.com"]
[Date "2024.06.02"]
[Round "-"]
[White "RichardABates"]
[Black "sebmoran1"]
[Result "1-0"]
[WhiteElo "2327"]
[BlackElo "1403"]
[TimeControl "300"]
[EndTime "4:16:50 PDT"]
[Termination "RichardABates won by checkmate"]

1. d4 {[%clk 0:04:57.6]} 1... Nf6 {[%clk 0:04:58.7]} 2. Nf3 {[%clk 0:04:56.2]}
2... g6 {[%clk 0:04:57.5]} 3. c4 {[%clk 0:04:54.9]} 3... Bg7 {[%clk 0:04:56.7]}
4. g3 {[%clk 0:04:53.6]} 4... O-O {[%clk 0:04:55.3]} 5. Bg2 {[%clk 0:04:52.7]}
5... d5 {[%clk 0:04:49.1]} 6. cxd5 {[%clk 0:04:51.2]} 6... Nxd5 {[%clk
0:04:47.8]} 7. O-O {[%clk 0:04:50]} 7... Bg4 {[%clk 0:04:43.1]} 8. h3 {[%clk
0:04:34.6]} 8... Bc8 {[%clk 0:04:38.9]} 9. e4 {[%clk 0:04:30.5]} 9... Nf6 {[%clk
0:04:33.2]} 10. Nc3 {[%clk 0:04:20.9]} 10... Nc6 {[%clk 0:04:30.2]} 11. Be3
{[%clk 0:04:03.8]} 11... e6 {[%clk 0:04:26.3]} 12. d5 {[%clk 0:03:53.4]} 12...
exd5 {[%clk 0:04:24.9]} 13. exd5 {[%clk 0:03:52.3]} 13... Nb4 {[%clk 0:04:23.5]}
14. Nh2 {[%clk 0:03:24.5]} 14... h5 {[%clk 0:04:10.6]} 15. a3 {[%clk 0:03:22.8]}
15... Na6 {[%clk 0:04:01]} 16. Bd4 {[%clk 0:03:21.6]} 16... Nd7 {[%clk
0:03:44.1]} 17. Bxg7 {[%clk 0:03:15.3]} 17... Kxg7 {[%clk 0:03:44]} 18. d6
{[%clk 0:03:09.4]} 18... cxd6 {[%clk 0:03:40.5]} 19. Qxd6 {[%clk 0:03:07.8]}
19... Nf6 {[%clk 0:03:39.4]} 20. Nb5 {[%clk 0:02:59.7]} 20... Qxd6 {[%clk
0:03:34.8]} 21. Nxd6 {[%clk 0:02:58.4]} 21... Rb8 {[%clk 0:03:32]} 22. Rac1
{[%clk 0:02:54.6]} 22... b6 {[%clk 0:03:25.7]} 23. Nxc8 {[%clk 0:02:51.2]} 23...
Rfxc8 {[%clk 0:03:25.6]} 24. Rxc8 {[%clk 0:02:48.8]} 24... Rxc8 {[%clk
0:03:25.5]} 25. Bb7 {[%clk 0:02:47.1]} 25... Rc2 {[%clk 0:03:20.9]} 26. Bxa6
{[%clk 0:02:45.5]} 26... Rxb2 {[%clk 0:03:20]} 27. Bc4 {[%clk 0:02:39]} 27...
Rc2 {[%clk 0:03:15]} 28. Bb5 {[%clk 0:02:37.8]} 28... Rb2 {[%clk 0:03:13.6]} 29.
a4 {[%clk 0:02:36.4]} 29... Nd5 {[%clk 0:03:11.4]} 30. Rc1 {[%clk 0:02:31.7]}
30... Nb4 {[%clk 0:03:04.9]} 31. Nf3 {[%clk 0:02:27.9]} 31... a6 {[%clk
0:03:01.3]} 32. Bc4 {[%clk 0:02:26.3]} 32... a5 {[%clk 0:02:53.4]} 33. Ng5
{[%clk 0:02:20.3]} 33... f6 {[%clk 0:02:48.6]} 34. Ne6+ {[%clk 0:02:18.8]} 34...
Kh6 {[%clk 0:02:35]} 35. Rd1 {[%clk 0:02:16]} 35... Rc2 {[%clk 0:02:27.1]} 36.
Rd8 {[%clk 0:02:12.8]} 36... Kh7 {[%clk 0:02:14.5]} 37. Rd7+ {[%clk 0:02:03.2]}
37... Kh6 {[%clk 0:02:10.6]} 38. Nf8 {[%clk 0:01:58.6]} 38... Rxc4 {[%clk
0:02:00.5]} 39. h4 {[%clk 0:01:57.4]} 39... Rc7 {[%clk 0:01:32.2]} 40. Rxc7
{[%clk 0:01:55.7]} 40... g5 {[%clk 0:01:30.5]} 41. Rh7# {[%clk 0:01:53.7]} 1-0

[Event "Live Chess"]
[Site "Chess.com"]
[Date "2024.06.02"]
[Round "-"]
[White "AlanBstard10"]
[Black "JanMur7"]
[Result "0-1"]
[WhiteElo "1225"]
[BlackElo "2292"]
[TimeControl "300"]
[EndTime "4:17:05 PDT"]
[Termination "JanMur7 won by resignation"]

1. b4 {[%clk 0:04:55.5]} 1... e6 {[%clk 0:04:54.3]} 2. Nf3 {[%clk 0:04:50.7]}
2... Bxb4 {[%clk 0:04:52.2]} 3. Bb2 {[%clk 0:04:49.2]} 3... Nf6 {[%clk
0:04:50.5]} 4. a3 {[%clk 0:04:46.6]} 4... Be7 {[%clk 0:04:48.9]} 5. e3 {[%clk
0:04:42.9]} 5... b6 {[%clk 0:04:48]} 6. Nc3 {[%clk 0:04:41.4]} 6... Bb7 {[%clk
0:04:45.7]} 7. Be2 {[%clk 0:04:40.6]} 7... O-O {[%clk 0:04:43]} 8. O-O {[%clk
0:04:39.4]} 8... d6 {[%clk 0:04:36.4]} 9. d4 {[%clk 0:04:37]} 9... Nbd7 {[%clk
0:04:34.6]} 10. Bd3 {[%clk 0:04:20.7]} 10... c5 {[%clk 0:04:31]} 11. dxc5 {[%clk
0:04:19.3]} 11... Nxc5 {[%clk 0:04:29.5]} 12. Be2 {[%clk 0:03:44.7]} 12... Nce4
{[%clk 0:04:24.7]} 13. Nxe4 {[%clk 0:03:39.9]} 13... Nxe4 {[%clk 0:04:24.6]} 14.
Nd2 {[%clk 0:03:29.5]} 14... Nxd2 {[%clk 0:03:59.1]} 15. Qxd2 {[%clk 0:03:28]}
15... d5 {[%clk 0:03:53.7]} 16. Qd4 {[%clk 0:03:20.4]} 16... Bf6 {[%clk
0:03:49.2]} 17. Qb4 {[%clk 0:03:18.9]} 17... Bxb2 {[%clk 0:03:46.2]} 18. Qxb2
{[%clk 0:03:17.6]} 18... Rc8 {[%clk 0:03:45.8]} 19. Rfc1 {[%clk 0:03:15.4]}
19... Qf6 {[%clk 0:03:34.4]} 20. Qxf6 {[%clk 0:03:10.3]} 20... gxf6 {[%clk
0:03:34.3]} 21. c3 {[%clk 0:02:58.1]} 21... Rc5 {[%clk 0:03:28.2]} 22. Rab1
{[%clk 0:02:50.6]} 22... Rfc8 {[%clk 0:03:26.9]} 23. Rb3 {[%clk 0:02:49.1]}
23... e5 {[%clk 0:03:23.6]} 24. f3 {[%clk 0:02:45.9]} 24... d4 {[%clk
0:03:21.8]} 25. exd4 {[%clk 0:02:38.3]} 25... exd4 {[%clk 0:03:20.5]} 26. c4
{[%clk 0:02:34]} 26... Ba6 {[%clk 0:03:14.9]} 27. Rb4 {[%clk 0:02:27.1]} 27...
b5 {[%clk 0:03:05.4]} 28. Rbb1 {[%clk 0:02:19.1]} 28... bxc4 {[%clk 0:03:03.6]}
29. Kf2 {[%clk 0:02:00.3]} 29... d3 {[%clk 0:02:59.8]} 30. Bd1 {[%clk 0:01:56]}
30... c3 {[%clk 0:02:57.2]} 31. Rb4 {[%clk 0:01:51.7]} 31... c2 {[%clk
0:02:51.4]} 32. Bxc2 {[%clk 0:01:47.1]} 32... Rxc2+ {[%clk 0:02:46.7]} 33. Rxc2
{[%clk 0:01:45.1]} 33... dxc2 {[%clk 0:02:46.6]} 0-1

[Event "Live Chess"]
[Site "Chess.com"]
[Date "2024.06.02"]
[Round "-"]
[White "elis06"]
[Black "Dhaydon19"]
[Result "0-1"]
[WhiteElo "2317"]
[BlackElo "2646"]
[TimeControl "300"]
[EndTime "4:17:08 PDT"]
[Termination "Dhaydon19 won by checkmate"]

1. e4 {[%clk 0:04:57.7]} 1... e6 {[%clk 0:04:59.6]} 2. d4 {[%clk 0:04:56.6]}
2... d5 {[%clk 0:04:59.1]} 3. Nc3 {[%clk 0:04:56.2]} 3... dxe4 {[%clk
0:04:58.4]} 4. Nxe4 {[%clk 0:04:55.4]} 4... Nd7 {[%clk 0:04:57.8]} 5. Nf3 {[%clk
0:04:54.6]} 5... Ngf6 {[%clk 0:04:57.5]} 6. Nxf6+ {[%clk 0:04:52.9]} 6... Nxf6
{[%clk 0:04:56.8]} 7. g3 {[%clk 0:04:52.5]} 7... Be7 {[%clk 0:04:53.4]} 8. Bg2
{[%clk 0:04:51.5]} 8... O-O {[%clk 0:04:52.8]} 9. O-O {[%clk 0:04:50.8]} 9...
Rb8 {[%clk 0:04:51.7]} 10. b3 {[%clk 0:04:50]} 10... b6 {[%clk 0:04:50.3]} 11.
Bb2 {[%clk 0:04:49.2]} 11... Rb7 {[%clk 0:04:49.5]} 12. Ne5 {[%clk 0:04:47.1]}
12... Bd6 {[%clk 0:04:45.4]} 13. Bxb7 {[%clk 0:04:39]} 13... Bxb7 {[%clk
0:04:44.1]} 14. Nf3 {[%clk 0:04:37.6]} 14... Qe7 {[%clk 0:04:42.7]} 15. Qe2
{[%clk 0:04:36.1]} 15... Rd8 {[%clk 0:04:41.5]} 16. c4 {[%clk 0:04:33.6]} 16...
h6 {[%clk 0:04:36.9]} 17. Rfe1 {[%clk 0:04:31.2]} 17... Qf8 {[%clk 0:04:33.8]}
18. Ne5 {[%clk 0:04:29.6]} 18... c5 {[%clk 0:04:30.1]} 19. dxc5 {[%clk
0:04:24.3]} 19... Bxc5 {[%clk 0:04:29.2]} 20. Ng4 {[%clk 0:04:08.7]} 20... Ne4
{[%clk 0:04:21.7]} 21. Qc2 {[%clk 0:03:52.2]} 21... Rd2 {[%clk 0:04:14.3]} 22.
Qc1 {[%clk 0:03:34.2]} 22... Qd6 {[%clk 0:03:59.4]} 23. Rxe4 {[%clk 0:03:03.5]}
23... Bxe4 {[%clk 0:03:55]} 24. Bc3 {[%clk 0:02:37.7]} 24... Rc2 {[%clk
0:03:50.7]} 25. Qe1 {[%clk 0:02:34.4]} 25... Qd3 {[%clk 0:03:47.5]} 26. Rd1
{[%clk 0:02:25.7]} 26... Qf3 {[%clk 0:03:38.6]} 27. Nxh6+ {[%clk 0:02:10]} 27...
Kh7 {[%clk 0:03:27.8]} 28. Ng4 {[%clk 0:02:04.7]} 28... Qg2# {[%clk 0:03:25.5]}
0-1

[Event "Live Chess"]
[Site "Chess.com"]
[Date "2024.06.02"]
[Round "-"]
[White "Mikhail_Golubev"]
[Black "Grace6363"]
[Result "1-0"]
[WhiteElo "2510"]
[BlackElo "1144"]
[TimeControl "300"]
[EndTime "4:17:31 PDT"]
[Termination "Mikhail_Golubev won by resignation"]

1. e4 {[%clk 0:04:56.9]} 1... c5 {[%clk 0:04:58.8]} 2. Nf3 {[%clk 0:04:55.4]}
2... Nc6 {[%clk 0:04:57.6]} 3. Nc3 {[%clk 0:04:52.5]} 3... g6 {[%clk 0:04:55.7]}
4. d4 {[%clk 0:04:51.6]} 4... cxd4 {[%clk 0:04:54.7]} 5. Nxd4 {[%clk 0:04:51.5]}
5... Bg7 {[%clk 0:04:54]} 6. Be3 {[%clk 0:04:50.8]} 6... Nf6 {[%clk 0:04:52.2]}
7. Bc4 {[%clk 0:04:50.1]} 7... O-O {[%clk 0:04:49.2]} 8. Bb3 {[%clk 0:04:48.1]}
8... e6 {[%clk 0:04:41.1]} 9. f3 {[%clk 0:04:43.5]} 9... a6 {[%clk 0:04:36.7]}
10. Qd2 {[%clk 0:04:33.8]} 10... Ne5 {[%clk 0:04:29.5]} 11. O-O {[%clk
0:04:25.3]} 11... b5 {[%clk 0:04:24]} 12. a4 {[%clk 0:04:20.4]} 12... Nc4 {[%clk
0:04:18.6]} 13. Bxc4 {[%clk 0:04:17.8]} 13... bxc4 {[%clk 0:04:18]} 14. Nde2
{[%clk 0:03:57.8]} 14... Bb7 {[%clk 0:04:12.1]} 15. a5 {[%clk 0:03:47.5]} 15...
Qe7 {[%clk 0:04:01.7]} 16. Rfd1 {[%clk 0:03:35.5]} 16... Rad8 {[%clk 0:03:58.5]}
17. Qd6 {[%clk 0:03:31.8]} 17... Rfe8 {[%clk 0:03:32.3]} 18. Qxe7 {[%clk
0:03:30.2]} 18... Rxe7 {[%clk 0:03:31.7]} 19. e5 {[%clk 0:03:29.6]} 19... Nd5
{[%clk 0:03:23.7]} 20. Bg5 {[%clk 0:03:20.6]} 20... f6 {[%clk 0:03:12.5]} 21.
Nxd5 {[%clk 0:03:19.6]} 21... Bxd5 {[%clk 0:03:06.6]} 22. exf6 {[%clk 0:03:16]}
22... Ree8 {[%clk 0:02:08.8]} 23. fxg7 {[%clk 0:03:13.5]} 23... Rb8 {[%clk
0:02:05.7]} 24. Bf6 {[%clk 0:03:12.3]} 24... Bc6 {[%clk 0:01:53.3]} 25. Rd6
{[%clk 0:03:04.6]} 25... e5 {[%clk 0:01:43.7]} 26. Nc3 {[%clk 0:02:58]} 26...
Rxb2 {[%clk 0:01:41.1]} 27. Re1 {[%clk 0:02:46.4]} 27... Rxc2 {[%clk 0:01:32.8]}
28. Rxe5 {[%clk 0:02:44.8]} 28... Rxe5 {[%clk 0:01:15.9]} 29. Bxe5 {[%clk
0:02:43.2]} 29... Rc1+ {[%clk 0:01:07.9]} 30. Kf2 {[%clk 0:02:41.6]} 30... Rc2+
{[%clk 0:00:53.6]} 31. Kg3 {[%clk 0:02:40.4]} 31... h5 {[%clk 0:00:48.7]} 32.
Nd5 {[%clk 0:02:38.6]} 32... Bxd5 {[%clk 0:00:42.9]} 33. Rxd5 {[%clk 0:02:36.8]}
33... Ra2 {[%clk 0:00:33.7]} 34. Rxd7 {[%clk 0:02:34.6]} 34... Rxa5 {[%clk
0:00:29.3]} 35. Rd8+ {[%clk 0:02:33.5]} 1-0

[Event "Live Chess"]
[Site "Chess.com"]
[Date "2024.06.02"]
[Round "-"]
[White "Bodhanas"]
[Black "Tilbs_12"]
[Result "1-0"]
[WhiteElo "2340"]
[BlackElo "1656"]
[TimeControl "300"]
[EndTime "4:17:41 PDT"]
[Termination "Bodhanas won by resignation"]

1. d4 {[%clk 0:04:55]} 1... d5 {[%clk 0:04:58.4]} 2. Nf3 {[%clk 0:04:53.7]} 2...
Nf6 {[%clk 0:04:57.3]} 3. Bf4 {[%clk 0:04:52.5]} 3... e6 {[%clk 0:04:53.3]} 4.
e3 {[%clk 0:04:49]} 4... c5 {[%clk 0:04:52.6]} 5. c3 {[%clk 0:04:47.4]} 5... Nc6
{[%clk 0:04:49]} 6. Nbd2 {[%clk 0:04:45.5]} 6... Be7 {[%clk 0:04:44.6]} 7. Bb5
{[%clk 0:04:40.9]} 7... O-O {[%clk 0:04:43]} 8. O-O {[%clk 0:04:38.2]} 8... a6
{[%clk 0:04:37.2]} 9. Bxc6 {[%clk 0:04:34.2]} 9... bxc6 {[%clk 0:04:36.2]} 10.
dxc5 {[%clk 0:04:32.3]} 10... Bxc5 {[%clk 0:04:34.8]} 11. c4 {[%clk 0:04:30.2]}
11... Qb6 {[%clk 0:04:24.2]} 12. Nb3 {[%clk 0:04:24.8]} 12... Be7 {[%clk
0:04:16]} 13. Rc1 {[%clk 0:04:18.8]} 13... a5 {[%clk 0:04:13.8]} 14. cxd5 {[%clk
0:04:11.4]} 14... cxd5 {[%clk 0:04:10.3]} 15. Bc7 {[%clk 0:04:03.9]} 15... Qb4
{[%clk 0:03:21.2]} 16. a3 {[%clk 0:03:57.4]} 16... Qa4 {[%clk 0:03:17.3]} 17.
Nbd4 {[%clk 0:03:55.1]} 17... Qxd1 {[%clk 0:03:15.7]} 18. Rfxd1 {[%clk
0:03:53.5]} 18... Bd7 {[%clk 0:03:02.9]} 19. Be5 {[%clk 0:03:37.7]} 19... Rfc8
{[%clk 0:02:57.9]} 20. Kf1 {[%clk 0:03:24.8]} 20... Rxc1 {[%clk 0:02:53.2]} 21.
Rxc1 {[%clk 0:03:21.8]} 21... Rc8 {[%clk 0:02:53.1]} 22. Rxc8+ {[%clk
0:03:19.1]} 22... Bxc8 {[%clk 0:02:53]} 23. Ke2 {[%clk 0:03:13.3]} 23... Ne4
{[%clk 0:02:50.2]} 24. Nd2 {[%clk 0:03:10.5]} 24... Nxd2 {[%clk 0:02:46.8]} 25.
Kxd2 {[%clk 0:03:09.5]} 25... f6 {[%clk 0:02:46.7]} 26. Nc6 {[%clk 0:03:07.5]}
26... Bc5 {[%clk 0:02:36]} 27. Bd4 {[%clk 0:03:02.9]} 27... Bd6 {[%clk
0:02:26.6]} 28. Nxa5 {[%clk 0:02:59.1]} 28... Kf7 {[%clk 0:02:24.7]} 29. g3
{[%clk 0:02:57]} 29... e5 {[%clk 0:02:22.6]} 30. Bc3 {[%clk 0:02:55.9]} 30... h5
{[%clk 0:02:13.7]} 31. b4 {[%clk 0:02:54.3]} 31... Bd7 {[%clk 0:02:07]} 32. Nb7
{[%clk 0:02:49.7]} 32... Be7 {[%clk 0:01:56.3]} 33. f4 {[%clk 0:02:43.2]} 33...
e4 {[%clk 0:01:47.6]} 34. Bd4 {[%clk 0:02:41.6]} 34... g5 {[%clk 0:01:35.4]} 35.
Bc5 {[%clk 0:02:37]} 35... h4 {[%clk 0:01:24.5]} 36. Bxe7 {[%clk 0:02:33.2]}
36... Kxe7 {[%clk 0:01:24.4]} 37. Nc5 {[%clk 0:02:31.8]} 37... Bc6 {[%clk
0:01:23]} 38. a4 {[%clk 0:02:30.5]} 38... Kd6 {[%clk 0:01:21.7]} 39. Kc3 {[%clk
0:02:29.1]} 39... hxg3 {[%clk 0:01:15.2]} 40. hxg3 {[%clk 0:02:27.6]} 40... g4
{[%clk 0:01:12.6]} 41. Kd4 {[%clk 0:02:26.5]} 41... f5 {[%clk 0:01:09.9]} 42. b5
{[%clk 0:02:24.9]} 42... Be8 {[%clk 0:01:05.4]} 43. Nb3 {[%clk 0:02:16.7]} 43...
Bd7 {[%clk 0:01:00.8]} 44. Kc3 {[%clk 0:02:15.1]} 44... Be8 {[%clk 0:00:58.3]}
45. Kb4 {[%clk 0:02:13.9]} 45... Kc7 {[%clk 0:00:52.9]} 46. Kc5 {[%clk
0:02:12.1]} 46... Bf7 {[%clk 0:00:50.7]} 47. Nd4 {[%clk 0:02:10.5]} 47... Bg6
{[%clk 0:00:46.6]} 48. a5 {[%clk 0:02:07.4]} 1-0

[Event "Live Chess"]
[Site "Chess.com"]
[Date "2024.06.02"]
[Round "-"]
[White "Trendle"]
[Black "KeithArkell"]
[Result "1-0"]
[WhiteElo "2624"]
[BlackElo "2418"]
[TimeControl "300"]
[EndTime "4:18:19 PDT"]
[Termination "Trendle won by resignation"]

1. e4 {[%clk 0:04:55.5]} 1... e6 {[%clk 0:04:57.2]} 2. d4 {[%clk 0:04:53.9]}
2... d5 {[%clk 0:04:56.4]} 3. e5 {[%clk 0:04:53.5]} 3... c5 {[%clk 0:04:54.7]}
4. c3 {[%clk 0:04:53]} 4... Nc6 {[%clk 0:04:53.4]} 5. Nf3 {[%clk 0:04:52.7]}
5... Nge7 {[%clk 0:04:52.8]} 6. Na3 {[%clk 0:04:51.2]} 6... cxd4 {[%clk
0:04:51]} 7. cxd4 {[%clk 0:04:50.2]} 7... Nf5 {[%clk 0:04:50.1]} 8. Nc2 {[%clk
0:04:49.9]} 8... Nb4 {[%clk 0:04:48.6]} 9. Nxb4 {[%clk 0:04:45.8]} 9... Bxb4+
{[%clk 0:04:47.3]} 10. Bd2 {[%clk 0:04:45.7]} 10... Qa5 {[%clk 0:04:45.6]} 11.
Bd3 {[%clk 0:04:42.4]} 11... Bd7 {[%clk 0:04:41.6]} 12. a3 {[%clk 0:04:35.5]}
12... Bxd2+ {[%clk 0:04:40.2]} 13. Qxd2 {[%clk 0:04:35.4]} 13... Qxd2+ {[%clk
0:04:39.1]} 14. Kxd2 {[%clk 0:04:35.3]} 14... Rc8 {[%clk 0:04:37.2]} 15. h4
{[%clk 0:04:24.9]} 15... h5 {[%clk 0:04:25.6]} 16. Bxf5 {[%clk 0:04:17.4]} 16...
exf5 {[%clk 0:04:24.8]} 17. Rhc1 {[%clk 0:04:17.1]} 17... Ke7 {[%clk 0:04:01.1]}
18. Rxc8 {[%clk 0:03:57.3]} 18... Rxc8 {[%clk 0:03:55.9]} 19. Rc1 {[%clk
0:03:57]} 19... Rxc1 {[%clk 0:03:49.3]} 20. Kxc1 {[%clk 0:03:56.9]} 20... f4
{[%clk 0:03:48.6]} 21. Kd2 {[%clk 0:03:52.6]} 21... Bg4 {[%clk 0:03:46]} 22. Ne1
{[%clk 0:03:48.5]} 22... f6 {[%clk 0:03:43.3]} 23. Nd3 {[%clk 0:03:39.7]} 23...
g5 {[%clk 0:03:34.8]} 24. exf6+ {[%clk 0:03:31.2]} 24... Kxf6 {[%clk 0:03:32.8]}
25. hxg5+ {[%clk 0:03:21.1]} 25... Kxg5 {[%clk 0:03:32.7]} 26. Ne5 {[%clk
0:03:05.7]} 26... h4 {[%clk 0:03:18.6]} 27. f3 {[%clk 0:02:52.1]} 27... Be6
{[%clk 0:03:08.5]} 28. b4 {[%clk 0:02:48]} 28... h3 {[%clk 0:02:57.1]} 29. gxh3
{[%clk 0:02:44.8]} 29... Bxh3 {[%clk 0:02:56.2]} 30. a4 {[%clk 0:02:36.5]} 30...
Be6 {[%clk 0:02:46.7]} 31. a5 {[%clk 0:02:33.3]} 31... a6 {[%clk 0:02:39.4]} 32.
Nd3 {[%clk 0:02:24.2]} 32... Bf5 {[%clk 0:02:34.5]} 33. Nc5 {[%clk 0:02:21.3]}
33... Bc8 {[%clk 0:02:33.2]} 34. Ke2 {[%clk 0:02:15.4]} 34... Kh4 {[%clk
0:02:29.4]} 35. Kf2 {[%clk 0:02:14.9]} 35... Kg5 {[%clk 0:02:27.5]} 36. Kg2
{[%clk 0:02:11]} 36... Kh4 {[%clk 0:02:24.8]} 37. Kh2 {[%clk 0:02:06.9]} 37...
Kg5 {[%clk 0:02:22.8]} 38. Nd3 {[%clk 0:01:50.8]} 38... Bf5 {[%clk 0:02:17.2]}
39. Ne5 {[%clk 0:01:49]} 39... Kf6 {[%clk 0:02:11.7]} 40. Kg2 {[%clk 0:01:43.9]}
40... Kg5 {[%clk 0:02:00]} 41. Nf7+ {[%clk 0:01:39.9]} 41... Kf6 {[%clk
0:01:34.9]} 42. Nd6 {[%clk 0:01:39.8]} 42... Bd7 {[%clk 0:01:16.9]} 43. Nxb7
{[%clk 0:01:37.6]} 43... Kg5 {[%clk 0:01:03.6]} 44. Nd6 {[%clk 0:01:33.1]} 44...
Kf6 {[%clk 0:01:01.8]} 45. Kf2 {[%clk 0:01:18.4]} 45... Ke7 {[%clk 0:01:00.7]}
46. Nb7 {[%clk 0:01:16.8]} 46... Bb5 {[%clk 0:00:55.6]} 47. Nc5 {[%clk
0:01:16.4]} 47... Kf6 {[%clk 0:00:52.4]} 48. Nb3 {[%clk 0:01:12.1]} 48... Bc4
{[%clk 0:00:50.2]} 49. Nc1 {[%clk 0:01:10.1]} 49... Kg5 {[%clk 0:00:48.7]} 50.
Ne2 {[%clk 0:01:08.9]} 50... Bd3 {[%clk 0:00:44.6]} 51. Nc3 {[%clk 0:01:05.9]}
51... Bc4 {[%clk 0:00:42]} 52. b5 {[%clk 0:00:49.9]} 1-0

[Event "Live Chess"]
[Site "Chess.com"]
[Date "2024.06.02"]
[Round "-"]
[White "StoreySniper"]
[Black "Isambard_Thomas"]
[Result "1-0"]
[WhiteElo "2500"]
[BlackElo "2200"]
[TimeControl "300"]
[EndTime "4:18:20 PDT"]
[Termination "StoreySniper won by resignation"]

1. e4 {[%clk 0:04:57.8]} 1... Nc6 {[%clk 0:04:58.2]} 2. Nf3 {[%clk 0:04:56.1]}
2... d5 {[%clk 0:04:57.5]} 3. exd5 {[%clk 0:04:54.8]} 3... Qxd5 {[%clk
0:04:57.2]} 4. Nc3 {[%clk 0:04:54.3]} 4... Qh5 {[%clk 0:04:55.8]} 5. Be2 {[%clk
0:04:51.5]} 5... Bg4 {[%clk 0:04:55.3]} 6. d3 {[%clk 0:04:49.8]} 6... Nf6 {[%clk
0:04:54.2]} 7. Be3 {[%clk 0:04:48.6]} 7... O-O-O {[%clk 0:04:53]} 8. a4 {[%clk
0:04:35.6]} 8... e6 {[%clk 0:04:41.4]} 9. Qb1 {[%clk 0:04:31.7]} 9... Nd5 {[%clk
0:04:26]} 10. Nxd5 {[%clk 0:04:27.4]} 10... exd5 {[%clk 0:04:23.2]} 11. c3
{[%clk 0:04:20]} 11... f6 {[%clk 0:04:07.2]} 12. h3 {[%clk 0:04:16.7]} 12... Bd6
{[%clk 0:03:58.5]} 13. Qa2 {[%clk 0:04:09.5]} 13... Rhe8 {[%clk 0:03:52.7]} 14.
O-O-O {[%clk 0:04:06.6]} 14... Bxf3 {[%clk 0:03:51.8]} 15. Bxf3 {[%clk
0:04:05.7]} 15... Qg6 {[%clk 0:03:47.9]} 16. Qxd5 {[%clk 0:03:50]} 16... Re5
{[%clk 0:03:44.1]} 17. Qa2 {[%clk 0:03:36.6]} 17... Na5 {[%clk 0:03:23.4]} 18.
b4 {[%clk 0:03:32]} 18... Nc6 {[%clk 0:03:12]} 19. d4 {[%clk 0:03:21.8]} 19...
Ree8 {[%clk 0:02:42.9]} 20. Qc4 {[%clk 0:03:20]} 20... Ne7 {[%clk 0:02:20.6]}
21. Qb5 {[%clk 0:03:03.7]} 21... c6 {[%clk 0:02:14.2]} 22. Qa5 {[%clk
0:03:02.8]} 22... Kb8 {[%clk 0:02:11.8]} 23. d5 {[%clk 0:02:57.1]} 23... Nc8
{[%clk 0:01:50.3]} 24. dxc6 {[%clk 0:02:49.6]} 24... Rxe3 {[%clk 0:01:32.9]} 25.
fxe3 {[%clk 0:02:40]} 25... Bc7 {[%clk 0:01:26.5]} 26. Qb5 {[%clk 0:02:31.3]}
26... Rxd1+ {[%clk 0:01:02.5]} 27. Rxd1 {[%clk 0:02:26.8]} 27... Bb6 {[%clk
0:00:59.1]} 28. c7+ {[%clk 0:02:11.1]} 28... Ka8 {[%clk 0:00:53.1]} 29. Rd8
{[%clk 0:02:03.7]} 29... Bxe3+ {[%clk 0:00:38]} 30. Kb2 {[%clk 0:02:01.2]} 1-0